[Event "FIDE Women World Blitz 2021"]
[Site "Warsaw"]
[Date "2021.12.30"]
[Round "14.7"]
[White "Budkiewicz, Magdalena"]
[Black "Rakhmangulova, Anastasiya"]
[Result "0-1"]
[ECO "B01"]
[WhiteElo "1624"]
[BlackElo "2174"]
[Annotator "NA"]
[PlyCount "76"]
[EventDate "2021.12.29"]
[EventType "swiss"]
[EventCountry "POL"]
[Tiebreak "Cut1 Buchholz"]
[SourceTitle "playchess.com"]
[Source "ChessBase"]
[SourceQuality "1"]
[TimeControl "180+2"]

1. e4 {[%emt 0:00:01]} d5 {[%emt 0:00:00]} 2. exd5 {[%emt 0:00:01]} Qxd5 {
[%emt 0:00:01]} 3. Nc3 {[%emt 0:00:01]} Qd6 {[%emt 0:00:00]} 4. d4 {[%emt 0:00:
02]} Nf6 {[%emt 0:00:01]} 5. Nf3 a6 6. Bc4 {[%emt 0:00:05]} b5 {[%emt 0:00:18]}
7. Be2 {[%emt 0:00:32]} Bb7 {[%emt 0:00:02]} 8. O-O {[%emt 0:00:06]} Nbd7 {
[%emt 0:00:00]} 9. a3 {[%emt 0:00:02]} e6 {[%emt 0:00:02]} 10. Bg5 {[%emt 0:00:
12]} Be7 {[%emt 0:00:01]} 11. Bh4 {[%emt 0:00:06]} O-O {[%emt 0:00:02]} 12. Bg3
{[%emt 0:00:01]} Qb6 {[%emt 0:00:01]} 13. Qd2 {[%emt 0:00:07]} c5 {[%emt 0:00:
08]} 14. Rad1 {[%emt 0:00:32]} Rfd8 {[%emt 0:00:01]} 15. Qf4 {[%emt 0:00:20]}
Rac8 {[%emt 0:00:05]} 16. dxc5 {[%emt 0:00:14]} Bxc5 {[%emt 0:00:25]} 17. Ne5 {
[%emt 0:00:18]} Nxe5 {[%emt 0:00:27]} 18. Qxe5 {[%emt 0:00:02]} Bd4 {[%emt 0:
00:02]} 19. Qg5 {[%emt 0:00:06]} h6 {[%emt 0:00:27]} 20. Qf4 {[%emt 0:00:18]}
Bxc3 {[%emt 0:00:28]} 21. bxc3 {[%emt 0:00:08]} Nd5 {[%emt 0:00:07]} 22. Qg4 {
[%emt 0:00:05]} Nxc3 {[%emt 0:00:01]} 23. Rxd8+ {[%emt 0:00:09]} Qxd8 {[%emt 0:
00:08]} 24. Be5 {[%emt 0:00:05]} Nxe2+ {[%emt 0:00:02]} 25. Qxe2 {[%emt 0:00:
01]} Rc4 {[%emt 0:00:14]} 26. Rd1 {[%emt 0:00:04]} Qg5 {[%emt 0:00:02]} 27. Bg3
{[%emt 0:00:03]} Bd5 {[%emt 0:00:19]} 28. h3 {[%emt 0:00:04]} Qf5 {[%emt 0:00:
02]} 29. Rd2 {[%emt 0:00:05]} Qf6 {[%emt 0:00:02]} 30. Be5 {[%emt 0:00:03]} Qf5
{[%emt 0:00:01]} 31. Bb2 {[%emt 0:00:05]} Qg6 {[%emt 0:00:08]} 32. f3 {[%emt 0:
00:02]} Qg5 {[%emt 0:00:05]} 33. Rd3 {[%emt 0:00:04]} a5 {[%emt 0:00:05]} 34.
Rd4 {[%emt 0:00:01]} Rxd4 {[%emt 0:00:06]} 35. Bxd4 {[%emt 0:00:01]} Qc1+ {
[%emt 0:00:01]} 36. Kh2 {[%emt 0:00:01]} Qf4+ {[%emt 0:00:01]} 37. g3 {[%emt 0:
00:04]} Qxd4 {[%emt 0:00:01]} 38. Qxb5 {[%emt 0:00:02]} Qf2+ {[%emt 0:00:01]}
0-1

[Event "FIDE Women World Blitz 2021"]
[Site "Warsaw"]
[Date "2021.12.30"]
[Round "14.8"]
[White "Kiolbasa, Oliwia"]
[Black "Abdumalik, Zhansaya"]
[Result "0-1"]
[ECO "C92"]
[WhiteElo "2403"]
[BlackElo "2507"]
[Annotator "ChessBase"]
[PlyCount "104"]
[EventDate "2021.12.29"]
[EventType "swiss"]
[EventCountry "POL"]
[Tiebreak "Cut1 Buchholz"]
[SourceTitle "playchess.com"]
[Source "ChessBase"]
[SourceQuality "1"]
[TimeControl "180+2"]

1. e4 {[%emt 0:00:01]} e5 {[%emt 0:00:01]} 2. Nf3 {[%emt 0:00:02]} Nc6 3. Bb5 {
[%emt 0:00:03]} a6 {[%emt 0:00:01]} 4. Ba4 {[%emt 0:00:00]} Nf6 {[%emt 0:00:01]
} 5. O-O {[%emt 0:00:03]} Be7 {[%emt 0:00:00]} 6. Re1 {[%emt 0:00:02]} b5 {
[%emt 0:00:01]} 7. Bb3 {[%emt 0:00:01]} O-O {[%emt 0:00:02]} 8. h3 {[%emt 0:00:
01]} Bb7 {[%emt 0:00:02]} 9. d3 {[%emt 0:00:09]} d6 {[%emt 0:00:07]} 10. c3 {
[%emt 0:00:02]} Na5 {[%emt 0:00:02]} 11. Bc2 {[%emt 0:00:01]} c5 {[%emt 0:00:
01]} 12. Nbd2 {[%emt 0:00:03]} Re8 {[%emt 0:00:00]} 13. Nf1 {[%emt 0:00:02]}
Qb6 {[%emt 0:00:08]} 14. Ng3 {[%emt 0:00:15]} Nc6 {[%emt 0:00:18]} 15. Nf5 {
[%emt 0:00:38]} Bf8 {[%emt 0:00:00]} 16. Nh2 {[%emt 0:00:07]} Ne7 {[%emt 0:00:
27]} 17. Ng4 {[%emt 0:00:36]} Nd7 {[%emt 0:00:34]} 18. Qf3 {[%emt 0:00:14]}
Rad8 {[%emt 0:00:10]} 19. Bb3 {[%emt 0:00:06]} Nxf5 {[%emt 0:00:16]} 20. Qxf5 {
[%emt 0:00:05]} c4 {[%emt 0:00:02]} 21. dxc4 {[%emt 0:00:17]} Nc5 {[%emt 0:00:
01]} 22. Be3 {[%emt 0:00:22]} Qc7 {[%emt 0:00:11]} 23. Bxc5 {[%emt 0:00:17]}
dxc5 {[%emt 0:00:01]} 24. cxb5 {[%emt 0:00:01]} axb5 {[%emt 0:00:02]} 25. a4 {
[%emt 0:00:05]} c4 {[%emt 0:00:04]} 26. Bd1 {[%emt 0:00:07]} b4 {[%emt 0:00:04]
} 27. Qg5 {[%emt 0:00:07]} Re6 {[%emt 0:00:06]} 28. a5 {[%emt 0:00:03]} h6 {
[%emt 0:00:01]} 29. Qe3 {[%emt 0:00:01]} Ra8 {[%emt 0:00:02]} 30. Be2 {[%emt 0:
00:04]} h5 {[%emt 0:00:04]} 31. Nh2 {[%emt 0:00:02]} Bc5 {[%emt 0:00:05]} 32.
Qd2 {[%emt 0:00:03]} Rd6 {[%emt 0:00:04]} 33. Qc2 {[%emt 0:00:02]} b3 {[%emt 0:
00:03]} 34. Qc1 {[%emt 0:00:01]} h4 {[%emt 0:00:09]} 35. Nf3 {[%emt 0:00:04]}
Bxe4 {[%emt 0:00:04]} 36. Nxe5 {[%emt 0:00:04]} Rf6 {[%emt 0:00:07]} 37. Bf3 {
[%emt 0:00:00]} Bxf3 {[%emt 0:00:13]} 38. gxf3 {[%emt 0:00:01]} Rxa5 {[%emt 0:
00:04]} 39. Rxa5 {[%emt 0:00:01]} Qxa5 {[%emt 0:00:01]} 40. Nxc4 {[%emt 0:00:
01]} Rg6+ {[%emt 0:00:02]} 41. Kh1 {[%emt 0:00:01]} Qa8 {[%emt 0:00:01]} 42.
Qf4 {[%emt 0:00:02]} Rf6 {[%emt 0:00:04]} 43. Qe4 {[%emt 0:00:01]} Qa6 {
[%emt 0:00:09]} 44. Qe8+ {[%emt 0:00:02]} Kh7 {[%emt 0:00:02]} 45. Qe4+ {
[%emt 0:00:01]} Kg8 {[%emt 0:00:04]} 46. Qe8+ {[%emt 0:00:01]} Bf8 {[%emt 0:00:
03]} 47. Ne3 {[%emt 0:00:03]} Rxf3 {[%emt 0:00:03]} 48. Kg2 {[%emt 0:00:01]}
Qb7 {[%emt 0:00:05]} 49. Kh2 {[%emt 0:00:04]} Rxf2+ {[%emt 0:00:01]} 50. Kg1 {
[%emt 0:00:00]} Qf3 {[%emt 0:00:03]} 51. Qe5 {[%emt 0:00:02]} Rxb2 {[%emt 0:00:
06]} 52. Qg5 {[%emt 0:00:01]} Qf2+ {[%emt 0:00:02]} 0-1

[Event "FIDE Women World Blitz 2021"]
[Site "Warsaw"]
[Date "2021.12.30"]
[Round "14.8"]
[White "Rudzinska, Michalina"]
[Black "Nurgali, Nazerke"]
[Result "0-1"]
[ECO "B15"]
[WhiteElo "1832"]
[BlackElo "2267"]
[Annotator "NA"]
[PlyCount "48"]
[EventDate "2021.12.29"]
[EventType "swiss"]
[EventCountry "POL"]
[Tiebreak "Cut1 Buchholz"]
[SourceTitle "playchess.com"]
[Source "ChessBase"]
[SourceQuality "1"]
[TimeControl "180+2"]

1. e4 {[%emt 0:00:01]} c6 {[%emt 0:00:00]} 2. d4 {[%emt 0:00:01]} d5 {[%emt 0:
00:01]} 3. Nc3 {[%emt 0:00:01]} dxe4 {[%emt 0:00:01]} 4. Nxe4 {[%emt 0:00:01]}
Nf6 {[%emt 0:00:01]} 5. Nxf6+ {[%emt 0:00:02]} exf6 {[%emt 0:00:01]} 6. c3 {
[%emt 0:00:01]} Bd6 {[%emt 0:00:01]} 7. Bd3 {[%emt 0:00:01]} Na6 {[%emt 0:00:
01]} 8. Ne2 {[%emt 0:00:03]} Nc7 {[%emt 0:00:01]} 9. O-O {[%emt 0:00:09]} h5 {
[%emt 0:00:02]} 10. Nf4 {[%emt 0:00:12]} Bxf4 {[%emt 0:00:20]} 11. Bxf4 {
[%emt 0:00:03]} Ne6 {[%emt 0:00:09]} 12. Re1 {[%emt 0:00:05]} Kf8 {[%emt 0:00:
03]} 13. Qf3 {[%emt 0:00:13]} g6 {[%emt 0:00:09]} 14. Rad1 {[%emt 0:00:22]} Kg7
{[%emt 0:00:06]} 15. h3 {[%emt 0:00:02]} h4 {[%emt 0:00:48]} 16. Bc4 {[%emt 0:
00:10]} Rh5 {[%emt 0:00:12]} 17. d5 {[%emt 0:00:08]} cxd5 {[%emt 0:00:06]} 18.
Bxd5 {[%emt 0:00:02]} Nxf4 {[%emt 0:00:10]} 19. Bxf7 {[%emt 0:00:18]} Qc7 {
[%emt 0:00:03]} 20. Bb3 {[%emt 0:00:05]} Rg5 {[%emt 0:00:14]} 21. Re8 {[%emt 0:
00:27]} Nxh3+ {[%emt 0:00:21]} 22. Kh1 {[%emt 0:00:09]} Bg4 {[%emt 0:00:05]}
23. Qd5 {[%emt 0:01:06]} Nxf2+ {[%emt 0:00:11]} 24. Kg1 {[%emt 0:00:01]} Rxe8 {
[%emt 0:00:03]} 0-1

[Event "FIDE Women World Blitz 2021"]
[Site "Warsaw"]
[Date "2021.12.30"]
[Round "14.9"]
[White "Salimova, Nurgyul"]
[Black "Stefanova, Antoaneta"]
[Result "0-1"]
[ECO "D00"]
[WhiteElo "2353"]
[BlackElo "2475"]
[Annotator "ChessBase"]
[PlyCount "76"]
[EventDate "2021.12.29"]
[EventType "swiss"]
[EventCountry "POL"]
[Tiebreak "Cut1 Buchholz"]
[SourceTitle "playchess.com"]
[Source "ChessBase"]
[SourceQuality "1"]
[TimeControl "180+2"]

1. d4 {[%emt 0:00:01]} d5 {[%emt 0:00:00]} 2. Nc3 {[%emt 0:00:01]} Nf6 {
[%emt 0:00:03]} 3. Bf4 {[%emt 0:00:02]} e6 {[%emt 0:00:06]} 4. Nb5 {[%emt 0:00:
02]} Na6 {[%emt 0:00:05]} 5. e3 {[%emt 0:00:02]} c6 {[%emt 0:00:04]} 6. Nc3 {
[%emt 0:00:01]} Bb4 {[%emt 0:00:02]} 7. Bd3 {[%emt 0:00:04]} Qa5 {[%emt 0:00:
32]} 8. Nge2 {[%emt 0:00:08]} c5 {[%emt 0:00:08]} 9. Bxa6 {[%emt 0:00:24]} Qxa6
{[%emt 0:00:02]} 10. a3 {[%emt 0:00:27]} Bxc3+ {[%emt 0:00:01]} 11. Nxc3 {
[%emt 0:00:04]} cxd4 {[%emt 0:00:07]} 12. Qxd4 {[%emt 0:00:08]} O-O {[%emt 0:
00:14]} 13. h4 {[%emt 0:00:31]} h5 {[%emt 0:00:44]} 14. g4 {[%emt 0:00:28]}
Nxg4 {[%emt 0:00:08]} 15. f3 {[%emt 0:00:15]} e5 {[%emt 0:00:04]} 16. Bxe5 {
[%emt 0:00:10]} Nxe5 {[%emt 0:00:01]} 17. Qxe5 {[%emt 0:00:02]} Qe6 {[%emt 0:
00:02]} 18. Qxe6 {[%emt 0:00:20]} fxe6 {[%emt 0:00:02]} 19. f4 {[%emt 0:00:10]}
d4 {[%emt 0:00:04]} 20. Ne2 {[%emt 0:00:03]} dxe3 {[%emt 0:00:03]} 21. O-O-O {
[%emt 0:00:06]} e5 {[%emt 0:00:08]} 22. fxe5 {[%emt 0:00:12]} Bg4 {[%emt 0:00:
01]} 23. Rde1 {[%emt 0:00:02]} Rae8 {[%emt 0:00:02]} 24. Nc3 {[%emt 0:00:04]}
Rxe5 {[%emt 0:00:03]} 25. b3 {[%emt 0:00:02]} Rf2 {[%emt 0:00:07]} 26. Kb2 {
[%emt 0:00:01]} e2 {[%emt 0:00:04]} 27. Kc1 {[%emt 0:00:02]} Bf3 {[%emt 0:00:
11]} 28. Rhg1 {[%emt 0:00:01]} Rh2 {[%emt 0:00:01]} 29. Kd2 {[%emt 0:00:02]}
Rxh4 {[%emt 0:00:02]} 30. Rg3 {[%emt 0:00:01]} Bg4 {[%emt 0:00:01]} 31. Re3 {
[%emt 0:00:01]} Rxe3 {[%emt 0:00:02]} 32. Kxe3 {[%emt 0:00:01]} Rh3+ {[%emt 0:
00:01]} 33. Kd2 {[%emt 0:00:01]} Rh2 {[%emt 0:00:01]} 34. a4 {[%emt 0:00:05]}
h4 {[%emt 0:00:02]} 35. Nd5 {[%emt 0:00:03]} h3 {[%emt 0:00:06]} 36. Rg1 {
[%emt 0:00:00]} Rg2 {[%emt 0:00:06]} 37. Rh1 {[%emt 0:00:03]} h2 {[%emt 0:00:
05]} 38. Ne3 {[%emt 0:00:01]} Rg1 {[%emt 0:00:04]} 0-1

[Event "FIDE Women World Blitz 2021"]
[Site "Warsaw"]
[Date "2021.12.30"]
[Round "14.9"]
[White "Kucharska, Honorata"]
[Black "Heredia Serrano, Carla"]
[Result "1-0"]
[ECO "B23"]
[WhiteElo "2168"]
[BlackElo "2138"]
[Annotator "NA"]
[PlyCount "69"]
[EventDate "2021.12.29"]
[EventType "swiss"]
[EventCountry "POL"]
[Tiebreak "Cut1 Buchholz"]
[SourceTitle "playchess.com"]
[Source "ChessBase"]
[SourceQuality "1"]
[TimeControl "180+2"]

1. e4 {[%emt 0:00:01]} c5 {[%emt 0:00:01]} 2. Nc3 {[%emt 0:00:01]} Nc6 {
[%emt 0:00:02]} 3. Bb5 {[%emt 0:00:01]} Nd4 {[%emt 0:00:08]} 4. Bc4 {[%emt 0:
00:01]} g6 {[%emt 0:00:06]} 5. Nf3 {[%emt 0:00:01]} Bg7 {[%emt 0:00:48]} 6.
Nxd4 {[%emt 0:00:02]} cxd4 {[%emt 0:00:01]} 7. Qf3 {[%emt 0:00:01]} Nf6 {
[%emt 0:00:07]} 8. e5 {[%emt 0:00:55]} dxc3 {[%emt 0:00:01]} 9. exf6 {[%emt 0:
00:01]} Bxf6 {[%emt 0:00:16]} 10. dxc3 {[%emt 0:00:01]} O-O {[%emt 0:00:01]}
11. O-O {[%emt 0:00:03]} Bg7 {[%emt 0:00:23]} 12. h4 {[%emt 0:00:02]} d6 {
[%emt 0:00:15]} 13. h5 {[%emt 0:00:02]} Bf5 {[%emt 0:00:07]} 14. Bd3 {[%emt 0:
00:10]} Qd7 {[%emt 0:00:13]} 15. h6 {[%emt 0:00:03]} Bf6 {[%emt 0:00:03]} 16.
Bxf5 {[%emt 0:00:07]} Qxf5 {[%emt 0:00:03]} 17. Qxf5 {[%emt 0:00:02]} gxf5 {
[%emt 0:00:01]} 18. g3 {[%emt 0:00:10]} e5 {[%emt 0:00:03]} 19. Rd1 {[%emt 0:
00:02]} Rad8 {[%emt 0:00:07]} 20. Rd5 {[%emt 0:00:02]} Rfe8 {[%emt 0:00:13]}
21. Be3 {[%emt 0:00:01]} a6 {[%emt 0:00:09]} 22. Bb6 {[%emt 0:00:03]} Rd7 {
[%emt 0:00:03]} 23. Rad1 {[%emt 0:00:01]} Re6 {[%emt 0:00:06]} 24. c4 {[%emt 0:
00:02]} e4 {[%emt 0:00:09]} 25. Rxf5 {[%emt 0:00:14]} d5 {[%emt 0:00:12]} 26.
Be3 {[%emt 0:00:34]} d4 {[%emt 0:00:04]} 27. Bf4 {[%emt 0:00:01]} Be7 {[%emt 0:
00:06]} 28. Rd5 {[%emt 0:00:03]} Rxd5 29. cxd5 Rb6 30. Rxd4 {[%emt 0:00:04]}
Rxb2 {[%emt 0:00:06]} 31. d6 {[%emt 0:00:02]} Bd8 {[%emt 0:00:01]} 32. Rxe4 {
[%emt 0:00:02]} Rb1+ {[%emt 0:00:02]} 33. Kg2 {[%emt 0:00:01]} Kf8 {[%emt 0:00:
01]} 34. d7 {[%emt 0:00:01]} Be7 {[%emt 0:00:03]} 35. Bd6 {[%emt 0:00:02]} 1-0

[Event "FIDE Women World Blitz 2021"]
[Site "Warsaw"]
[Date "2021.12.30"]
[Round "14.10"]
[White "Paehtz, Elisabeth"]
[Black "Bivol, Alina"]
[Result "0-1"]
[ECO "D02"]
[WhiteElo "2485"]
[BlackElo "2377"]
[Annotator "ChessBase"]
[PlyCount "192"]
[EventDate "2021.12.29"]
[EventType "swiss"]
[EventCountry "POL"]
[Tiebreak "Cut1 Buchholz"]
[SourceTitle "playchess.com"]
[Source "ChessBase"]
[SourceQuality "1"]
[TimeControl "180+2"]

1. d4 {[%emt 0:00:01]} d5 {[%emt 0:00:02]} 2. Bf4 {[%emt 0:00:01]} Nf6 {
[%emt 0:00:02]} 3. e3 {[%emt 0:00:01]} e6 {[%emt 0:00:01]} 4. Nf3 {[%emt 0:00:
08]} c5 {[%emt 0:00:01]} 5. c3 {[%emt 0:00:01]} Nc6 {[%emt 0:00:01]} 6. Nbd2 {
[%emt 0:00:01]} Nh5 {[%emt 0:00:02]} 7. Bg5 {[%emt 0:00:03]} Qb6 {[%emt 0:00:
15]} 8. dxc5 {[%emt 0:00:01]} Bxc5 {[%emt 0:00:01]} 9. b4 {[%emt 0:00:01]} Be7
{[%emt 0:00:14]} 10. b5 {[%emt 0:00:01]} Nb8 {[%emt 0:00:30]} 11. Bxe7 {
[%emt 0:00:03]} Kxe7 {[%emt 0:00:01]} 12. c4 {[%emt 0:00:29]} Nf6 {[%emt 0:00:
03]} 13. cxd5 {[%emt 0:00:17]} exd5 {[%emt 0:00:11]} 14. Nd4 {[%emt 0:00:06]}
Re8 {[%emt 0:00:13]} 15. Bd3 {[%emt 0:00:06]} Kf8 {[%emt 0:00:03]} 16. O-O {
[%emt 0:00:07]} Nbd7 {[%emt 0:00:01]} 17. N2f3 {[%emt 0:00:24]} Nc5 {[%emt 0:
00:03]} 18. h3 {[%emt 0:00:04]} Bd7 {[%emt 0:00:07]} 19. a4 {[%emt 0:00:02]}
Rac8 {[%emt 0:00:06]} 20. Qe2 {[%emt 0:00:12]} Kg8 {[%emt 0:00:11]} 21. Nd2 {
[%emt 0:00:04]} Nfe4 {[%emt 0:00:03]} 22. Nxe4 {[%emt 0:00:25]} dxe4 {[%emt 0:
00:04]} 23. Bc4 {[%emt 0:00:03]} Ne6 {[%emt 0:00:23]} 24. Rfd1 {[%emt 0:00:06]}
Nxd4 {[%emt 0:00:25]} 25. Rxd4 {[%emt 0:00:01]} Bf5 {[%emt 0:00:06]} 26. Rad1 {
[%emt 0:00:04]} h6 {[%emt 0:00:06]} 27. Rd6 {[%emt 0:00:22]} Qc7 {[%emt 0:00:
07]} 28. Bb3 {[%emt 0:00:04]} Red8 {[%emt 0:00:11]} 29. Qd2 {[%emt 0:00:09]}
Rxd6 {[%emt 0:00:02]} 30. Qxd6 {[%emt 0:00:01]} Qxd6 {[%emt 0:00:02]} 31. Rxd6
{[%emt 0:00:01]} Rc7 {[%emt 0:00:03]} 32. Rd8+ {[%emt 0:00:01]} Kh7 {[%emt 0:
00:01]} 33. Bd5 {[%emt 0:00:08]} Rc1+ {[%emt 0:00:12]} 34. Kh2 {[%emt 0:00:01]}
Ra1 {[%emt 0:00:01]} 35. Bxf7 {[%emt 0:00:07]} Rxa4 {[%emt 0:00:01]} 36. Rb8 {
[%emt 0:00:03]} b6 {[%emt 0:00:03]} 37. g4 {[%emt 0:00:03]} Bd7 {[%emt 0:00:04]
} 38. Kg3 {[%emt 0:00:10]} Bxb5 {[%emt 0:00:01]} 39. h4 {[%emt 0:00:01]} Bc4 {
[%emt 0:00:02]} 40. Be8 {[%emt 0:00:02]} Ra5 {[%emt 0:00:02]} 41. Bc6 {[%emt 0:
00:01]} Bd3 {[%emt 0:00:03]} 42. h5 {[%emt 0:00:03]} Rc5 {[%emt 0:00:02]} 43.
Bd7 {[%emt 0:00:01]} g6 {[%emt 0:00:01]} 44. Rb7 {[%emt 0:00:02]} gxh5 {
[%emt 0:00:02]} 45. Be6+ {[%emt 0:00:02]} Kh8 {[%emt 0:00:02]} 46. gxh5 {
[%emt 0:00:02]} Rxh5 {[%emt 0:00:01]} 47. Rxa7 {[%emt 0:00:01]} Re5 {[%emt 0:
00:03]} 48. Bg4 {[%emt 0:00:02]} b5 {[%emt 0:00:00]} 49. Rb7 {[%emt 0:00:01]}
Rc5 {[%emt 0:00:03]} 50. Kf4 {[%emt 0:00:01]} Rc2 {[%emt 0:00:01]} 51. Kg3 {
[%emt 0:00:02]} Rc5 {[%emt 0:00:02]} 52. Be6 {[%emt 0:00:02]} Rc6 {[%emt 0:00:
02]} 53. Bd5 {[%emt 0:00:02]} Rd6 {[%emt 0:00:01]} 54. Bb3 {[%emt 0:00:02]}
Rg6+ {[%emt 0:00:02]} 55. Kf4 {[%emt 0:00:01]} Rf6+ {[%emt 0:00:02]} 56. Kg3 {
[%emt 0:00:01]} Rf3+ {[%emt 0:00:01]} 57. Kg2 {[%emt 0:00:01]} Rf6 {[%emt 0:00:
04]} 58. Bd5 {[%emt 0:00:02]} Rf5 {[%emt 0:00:02]} 59. Bb3 {[%emt 0:00:03]} h5
{[%emt 0:00:02]} 60. Rb6 {[%emt 0:00:07]} Rg5+ {[%emt 0:00:01]} 61. Kh3 {
[%emt 0:00:01]} Rf5 {[%emt 0:00:02]} 62. Kg2 {[%emt 0:00:02]} Kg7 {[%emt 0:00:
02]} 63. Rb7+ {[%emt 0:00:01]} Kf6 {[%emt 0:00:02]} 64. Rb6+ {[%emt 0:00:02]}
Ke5 {[%emt 0:00:03]} 65. Rb8 {[%emt 0:00:01]} Kd6 {[%emt 0:00:02]} 66. Rc8 {
[%emt 0:00:02]} Rg5+ {[%emt 0:00:03]} 67. Kh3 {[%emt 0:00:02]} Rf5 {[%emt 0:00:
01]} 68. Kg3 {[%emt 0:00:00]} Rf3+ {[%emt 0:00:01]} 69. Kg2 {[%emt 0:00:01]}
Rf5 {[%emt 0:00:01]} 70. Kg3 {[%emt 0:00:01]} Rc5 {[%emt 0:00:02]} 71. Rd8+ {
[%emt 0:00:01]} Kc7 {[%emt 0:00:01]} 72. Rd5 {[%emt 0:00:12]} Rxd5 {[%emt 0:00:
02]} 73. Bxd5 {[%emt 0:00:01]} Kd6 {[%emt 0:00:01]} 74. Bf7 {[%emt 0:00:03]} b4
{[%emt 0:00:02]} 75. Kf4 {[%emt 0:00:03]} Kc5 {[%emt 0:00:02]} 76. Bb3 {
[%emt 0:00:06]} Bc4 {[%emt 0:00:03]} 77. Bc2 {[%emt 0:00:01]} Bd3 {[%emt 0:00:
01]} 78. Bb3 {[%emt 0:00:01]} Kd6 {[%emt 0:00:08]} 79. Kg5 {[%emt 0:00:02]} Be2
{[%emt 0:00:01]} 80. Kf4 {[%emt 0:00:06]} Bf3 {[%emt 0:00:02]} 81. Kg5 {
[%emt 0:00:02]} Ke5 {[%emt 0:00:00]} 82. Kh4 {[%emt 0:00:02]} Be2 {[%emt 0:00:
03]} 83. Kg3 {[%emt 0:00:01]} Bd3 {[%emt 0:00:02]} 84. Kh4 {[%emt 0:00:01]} Be2
{[%emt 0:00:01]} 85. Kg3 {[%emt 0:00:01]} Kf5 {[%emt 0:00:02]} 86. Kh4 {
[%emt 0:00:00]} Bf3 {[%emt 0:00:01]} 87. Bf7 {[%emt 0:00:02]} Bd1 {[%emt 0:00:
02]} 88. Bc4 {[%emt 0:00:06]} b3 {[%emt 0:00:00]} 89. Bxb3 {[%emt 0:00:01]}
Bxb3 {[%emt 0:00:01]} 90. Kxh5 {[%emt 0:00:01]} Bd1+ {[%emt 0:00:01]} 91. Kh4 {
[%emt 0:00:01]} Bf3 {[%emt 0:00:01]} 92. Kg3 {[%emt 0:00:00]} Kg5 {[%emt 0:00:
00]} 93. Kh3 {[%emt 0:00:01]} Kf5 {[%emt 0:00:02]} 94. Kg3 {[%emt 0:00:00]} Ke5
{[%emt 0:00:00]} 95. Kh4 {[%emt 0:00:01]} Kd5 {[%emt 0:00:01]} 96. Kg3 {
[%emt 0:00:01]} Ke5 {[%emt 0:00:05]} 0-1

[Event "FIDE Women World Blitz 2021"]
[Site "Warsaw"]
[Date "2021.12.30"]
[Round "14.10"]
[White "Zairbek kyzy, Begimai"]
[Black "Kolaric, Spela"]
[Result "1-0"]
[ECO "C58"]
[WhiteElo "1701"]
[BlackElo "2178"]
[Annotator "NA"]
[PlyCount "77"]
[EventDate "2021.12.29"]
[EventType "swiss"]
[EventCountry "POL"]
[Tiebreak "Cut1 Buchholz"]
[SourceTitle "playchess.com"]
[Source "ChessBase"]
[SourceQuality "1"]
[TimeControl "180+2"]

1. e4 {[%emt 0:00:01]} e5 {[%emt 0:00:01]} 2. Nf3 {[%emt 0:00:01]} Nc6 {
[%emt 0:00:01]} 3. Bc4 {[%emt 0:00:00]} Nf6 {[%emt 0:00:01]} 4. Ng5 {[%emt 0:
00:01]} d5 {[%emt 0:00:01]} 5. exd5 {[%emt 0:00:01]} Na5 {[%emt 0:00:01]} 6.
Bb5+ {[%emt 0:00:01]} c6 {[%emt 0:00:01]} 7. dxc6 {[%emt 0:00:01]} bxc6 {
[%emt 0:00:01]} 8. Bd3 {[%emt 0:00:01]} Nd5 {[%emt 0:00:06]} 9. Nf3 {[%emt 0:
00:25]} Bd6 {[%emt 0:00:04]} 10. O-O {[%emt 0:00:03]} Nf4 {[%emt 0:00:11]} 11.
Re1 {[%emt 0:00:18]} O-O {[%emt 0:00:09]} 12. Bf1 {[%emt 0:00:01]} Re8 {
[%emt 0:00:13]} 13. d3 {[%emt 0:00:01]} Nd5 {[%emt 0:00:16]} 14. Nc3 {[%emt 0:
00:02]} Nxc3 {[%emt 0:00:08]} 15. bxc3 {[%emt 0:00:01]} Nb7 {[%emt 0:00:00]}
16. Bg5 {[%emt 0:00:38]} Qc7 {[%emt 0:00:03]} 17. Bh4 {[%emt 0:00:04]} f5 {
[%emt 0:00:05]} 18. h3 {[%emt 0:00:27]} f4 {[%emt 0:00:24]} 19. Rb1 {[%emt 0:
00:01]} h6 {[%emt 0:00:03]} 20. Nd2 {[%emt 0:00:29]} g5 {[%emt 0:00:26]} 21.
Ne4 {[%emt 0:00:01]} Qe7 {[%emt 0:00:23]} 22. d4 {[%emt 0:00:15]} Rb8 {[%emt 0:
00:22]} 23. Qh5 {[%emt 0:00:04]} gxh4 {[%emt 0:00:07]} 24. Nxd6 {[%emt 0:00:04]
} Nxd6 {[%emt 0:00:06]} 25. Rxb8 {[%emt 0:00:01]} Qg5 {[%emt 0:00:07]} 26.
Qxg5+ {[%emt 0:00:03]} hxg5 {[%emt 0:00:01]} 27. Rxe5 {[%emt 0:00:03]} Kf7 {
[%emt 0:00:05]} 28. Rxg5 {[%emt 0:00:03]} Re1 {[%emt 0:00:05]} 29. Re5 {
[%emt 0:00:24]} Rc1 {[%emt 0:00:00]} 30. c4 {[%emt 0:00:11]} Ba6 {[%emt 0:00:
03]} 31. Kh2 {[%emt 0:00:13]} Rxf1 32. c5 Nc4 {[%emt 0:00:09]} 33. Rf5+ {
[%emt 0:00:01]} Ke6 {[%emt 0:00:01]} 34. Rxf4 {[%emt 0:00:01]} Nd2 {[%emt 0:00:
05]} 35. Rxh4 {[%emt 0:00:02]} Kd5 {[%emt 0:00:00]} 36. Rd8+ {[%emt 0:00:01]}
Kc4 {[%emt 0:00:01]} 37. Rh7 {[%emt 0:00:02]} Rxf2 {[%emt 0:00:01]} 38. Rxa7 {
[%emt 0:00:07]} Bb5 {[%emt 0:00:12]} 39. a4 {[%emt 0:00:00]} 1-0